bitfinex-derivatives/quotes_SOLF0:USTF0_20250215
["timestamp","ask_amount","ask_price","bid_price","bid_amount"]
[1739653266083,5.1688,193.44,193.41,7.47473675]
[1739653267284,0.03857294,193.45,193.41,7.47473675]
[1739653267484,5.20707294,193.45,193.41,7.47473675]
[1739653268086,5.1688,193.44,193.41,7.47473675]
[1739653268782,0.03857294,193.45,193.41,7.47473675]
[1739653268988,5.1693,193.42,193.41,0.03450711]
[1739653270079,5.1691,193.43,193.41,0.03450711]
[1739653271185,5.1693,193.42,193.41,0.03450711]
[1739653274993,5.1692,193.43,193.41,0.03450711]
[1739653275395,0.03857294,193.45,193.41,0.03450711]
[1739653276194,5.20727294,193.45,193.41,7.47473675]
[1739653276590,0.03857294,193.45,193.43,7.44022964]
[1739653276895,0.03857294,193.45,193.43,12.60912964]
[1739653277195,0.03857294,193.45,193.43,7.44022964]
[1739653284993,0.03857294,193.45,193.41,7.47473675]
[1739653285604,0.03857294,193.45,193.41,0.03450711]
[1739653286099,5.169,193.43,193.41,0.03450711]
[1739653287100,5.1688,193.44,193.41,0.03450711]
[1739653288201,0.03857294,193.45,193.41,0.03450711]
[1739653288402,5.169,193.43,193.41,0.03450711]
[1739653289806,0.03857294,193.45,193.41,0.03450711]
[1739653290103,5.1693,193.42,193.41,0.03450711]
[1739653290907,5.1691,193.43,193.41,0.03450711]
[1739653292008,5.1688,193.44,193.41,0.03450711]
[1739653293610,0.03857294,193.45,193.41,0.03450711]
[1739653293905,7.44022964,193.44,193.41,0.03450711]
[1739653294403,5.1693,193.42,193.41,0.03450711]
[1739653295206,5.1691,193.43,193.41,0.03450711]
[1739653296607,12.60902964,193.44,193.41,0.03450711]
[1739653296807,84.93417881,193.45,193.41,7.47473675]
[1739653297909,5.20727294,193.45,193.41,7.47473675]
[1739653299712,0.03857294,193.45,193.41,7.47473675]
[1739653299913,5.1688,193.44,193.41,7.47473675]
[1739653300414,5.1691,193.43,193.41,7.47473675]
[1739653300611,7.47880258,193.45,193.41,0.03450711]
[1739653300815,7.44022964,193.43,193.41,0.03450711]
[1739653301210,5.1693,193.42,193.41,0.03450711]
[1739653303319,5.1713,193.35,193.33,123.44022964]
[1739653303518,5.1713,193.35,193.33,7.44022964]
[1739653304115,5.1714,193.34,193.33,7.44022964]
[1739653304910,0.03864018,193.35,193.33,7.44022964]
[1739653305212,5.20984018,193.35,193.33,7.44022964]
[1739653306218,5.1714,193.34,193.33,7.44022964]
[1739653306919,0.03864018,193.35,193.33,7.44022964]
[1739653313127,0.03864018,193.35,193.34,5.1714]
[1739653325132,0.03864018,193.35,193.33,7.44022964]
[1739653325727,5.20984018,193.35,193.33,7.44022964]
[1739653326334,0.03864018,193.35,193.33,7.44022964]
[1739653326535,0.03864018,193.35,193.34,5.1714]
[1739653327332,84.89560587,193.41,193.38,5.1703]
[1739653327532,84.89560587,193.41,193.39,7.44022964]
[1739653328239,90.06520587,193.41,193.39,7.44022964]
[1739653328935,5.1698,193.4,193.39,7.44022964]
[1739653329134,0.03529974,193.42,193.38,0.03656924]
[1739653330837,5.1698,193.41,193.38,0.03656924]
[1739653331235,0.03529974,193.42,193.38,5.20686924]
[1739653331442,5.20479974,193.42,193.38,0.03656924]
[1739653333035,0.03529974,193.42,193.39,5.1701]
[1739653333241,0.03529974,193.42,193.39,12.61032964]
[1739653334941,0.03529974,193.42,193.39,7.44022964]
[1739653335442,5.20469974,193.42,193.39,7.44022964]
[1739653335644,0.03529974,193.42,193.39,7.44022964]
[1739653336945,0.03529974,193.42,193.38,0.03656924]
[1739653337146,5.1696,193.41,193.38,0.03656924]
[1739653338452,0.03529974,193.42,193.39,7.44022964]
[1739653342356,0.03529974,193.42,193.41,12.60972964]
[1739653351057,17.64,193.47,193.41,7.44022964]
[1739653351262,17.64,193.47,193.46,12.60842964]
[1739653351557,5.1672,193.5,193.46,12.60842964]
[1739653352261,5.20293171,193.5,193.46,12.64169919]
[1739653354260,5.20293171,193.5,193.48,7.44022964]
[1739653354261,0.03573171,193.5,193.48,7.44022964]
[1739653355159,0.03573171,193.5,193.46,7.47349919]
[1739653355364,5.20313171,193.5,193.46,7.47349919]
[1739653356866,5.1674,193.49,193.46,7.47349919]
[1739653358962,0.03573171,193.5,193.46,7.47349919]
[1739653359167,0.03573171,193.5,193.48,7.44022964]
[1739653361156,0.03573171,193.5,193.49,5.1674]
[1739653369573,11.63573171,193.5,193.49,5.1674]
[1739653370575,92.66350587,193.6,193.52,5.1666]
[1739653370773,92.66350587,193.6,193.53,7.44022964]
[1739653370976,5.1657,193.56,193.53,7.44022964]
[1739653371677,5.19932749,193.56,193.53,7.47582421]
[1739653373680,5.19932749,193.56,193.55,7.44022964]
[1739653373681,0.03362749,193.56,193.55,7.44022964]
[1739653376079,5.19912749,193.56,193.55,7.44022964]
[1739653376279,0.03362749,193.56,193.55,7.44022964]
[1739653377779,0.03362749,193.56,193.55,12.60602964]
[1739653379270,12.08362749,193.56,193.55,12.60602964]
[1739653379676,12.08362749,193.56,193.55,7.44022964]
[1739653380480,12.08362749,193.56,193.55,12.60602964]
[1739653380684,12.08362749,193.56,193.55,7.44022964]
[1739653383288,12.08362749,193.56,193.53,7.47582421]
[1739653384389,17.24942749,193.56,193.53,7.47582421]
[1739653385692,12.08362749,193.56,193.53,12.64212421]
[1739653386192,12.08362749,193.56,193.53,7.47582421]
[1739653386594,12.08362749,193.56,193.55,7.44022964]
[1739653387193,0.03362749,193.56,193.55,7.44022964]
[1739653387593,0.03362749,193.56,193.55,12.60602964]
[1739653388396,1.91397036,193.55,193.53,0.03559457]
[1739653388596,1.91397036,193.55,193.54,7.44022964]
[1739653389098,1.91397036,193.55,193.54,12.60632964]
[1739653389596,0.03362749,193.56,193.55,5.1658]
[1739653391301,0.03362749,193.56,193.54,7.44022964]
[1739653391494,0.03362749,193.56,193.54,12.60622964]
[1739653391702,0.03362749,193.56,193.54,7.44022964]
[1739653394403,0.03362749,193.56,193.54,12.60632964]
[1739653394607,0.03362749,193.56,193.54,7.44022964]
[1739653395201,0.03362749,193.56,193.55,5.1658]
[1739653400509,12.91,193.57,193.56,5.1655]
[1739653400704,12.91,193.57,193.56,12.60572964]
[1739653424235,24.11,193.57,193.56,12.60572964]
[1739653433136,12.91,193.57,193.56,12.60572964]
[1739653434343,12.91,193.57,193.56,1.41572964]
[1739653435143,12.91,193.57,193.56,6.58122964]
[1739653443052,0.03577439,193.58,193.57,5.1653]
[1739653443446,0.03577439,193.58,193.56,1.41572964]
[1739653443948,0.03577439,193.58,193.57,5.1653]
[1739653454664,0.03577439,193.58,193.56,1.41572964]
[1739653454861,0.03577439,193.58,193.55,5.1655]
[1739653457760,0.03577439,193.58,193.55,5.1658]
[1739653461464,0.03577439,193.58,193.54,7.44022964]
[1739653461658,0.03577439,193.58,193.53,0.03559457]
[1739653461962,7.44022964,193.57,193.53,0.03559457]
[1739653462262,10.11432964,193.57,193.53,0.03559457]
[1739653462659,5.1659,193.55,193.53,0.03559457]
[1739653464558,5.1664,193.53,193.48,12.60782964]
[1739653464759,7.44022964,193.55,193.48,12.60782964]
[1739653465160,10.11432964,193.57,193.5,7.44022964]
[1739653465460,10.11432964,193.57,193.5,12.60732964]
[1739653465761,5.20507677,193.55,193.52,0.03952731]
[1739653468863,5.16,193.54,193.52,0.03952731]
[1739653470568,5.16,193.54,193.52,5.20612731]
[1739653472073,5.16,193.54,193.52,0.03952731]
[1739653474468,7.44022964,193.53,193.46,7.44022964]
[1739653474871,7.44022964,193.53,193.47,5.1677]
[1739653475468,7.44022964,193.53,193.46,7.44022964]
[1739653475673,5.1672,193.5,193.48,0.03439896]
[1739653476067,0.03346015,193.52,193.48,7.4746286]
[1739653476272,0.03346015,193.52,193.51,5.1669]
[1739653478472,5.16,193.54,193.53,5.1663]
[1739653478677,5.16,193.54,193.53,12.60652964]
[1739653490487,0.03949275,193.55,193.53,7.44022964]
[1739653490688,0.03949275,193.55,193.54,5.1661]
[1739653492182,2.4968,193.62,193.53,7.44022964]
[1739653492387,90.11750587,193.63,193.59,12.60472964]
[1739653493391,90.1568878,193.63,193.59,12.64404667]
[1739653494391,5.26128193,193.63,193.59,12.64404667]
[1739653495287,5.26128193,193.63,193.59,7.47954667]
[1739653495492,5.26128193,193.63,193.6,5.1645]
[1739653496388,0.03938193,193.63,193.62,5.1639]
[1739653499391,0.03938193,193.63,193.61,7.44022964]
[1739653499592,0.03938193,193.63,193.61,12.60442964]
[1739653500792,0.03938193,193.63,193.61,7.44022964]
[1739653500988,0.03938193,193.63,193.59,12.64424667]
[1739653502096,5.20308193,193.63,193.59,12.64424667]
[1739653502287,0.03938193,193.63,193.61,7.44022964]
[1739653502995,0.03938193,193.63,193.62,5.1639]
[1739653503500,84.89560587,193.67,193.61,7.44022964]
[1739653503698,84.89560587,193.67,193.66,7.44022964]
[1739653503900,84.89560587,193.7,193.66,7.44022964]
[1739653504199,84.89560587,193.7,193.68,7.44022964]
[1739653504798,84.89560587,193.7,193.69,5.1621]
[1739653504997,84.89560587,193.7,193.68,7.44022964]
[1739653505197,84.89560587,193.7,193.68,12.60252964]
[1739653505597,84.89560587,193.7,193.68,7.44022964]
[1739653507402,0.03960196,193.71,193.68,7.44022964]
[1739653508599,5.1622,193.69,193.67,0.03331205]
[1739653508804,7.4798316,193.71,193.67,0.03331205]
[1739653509607,5.1623,193.68,193.67,0.03331205]
[1739653511006,5.1621,193.69,193.67,0.03331205]
[1739653512009,0.03960196,193.71,193.68,7.44022964]
[1739653512209,0.03960196,193.71,193.7,7.44022964]
[1739653512807,87.48790587,193.77,193.7,7.44022964]
[1739653513009,84.89560587,193.77,193.76,7.44022964]
[1739653514917,84.89560587,193.77,193.76,12.60042964]
[1739653515112,142.17375499,193.78,193.76,7.44022964]
[1739653515317,0.03391638,193.78,193.76,7.44022964]
[1739653515716,85.42263929,193.82,193.76,7.44022964]
[1739653515912,85.42263929,193.82,193.81,7.44022964]
[1739653516609,85.42263929,193.82,193.77,5.1599]
[1739653516610,85.42263929,193.82,193.79,7.44022964]
[1739653516917,85.42263929,193.82,193.79,7.47481094]
[1739653517715,5.1591,193.8,193.79,0.0345813]
[1739653517919,10.14742964,193.81,193.73,7.44022964]
[1739653518317,5.16,193.77,193.73,7.44022964]
[1739653519120,5.19940434,193.77,193.73,7.47506206]
[1739653519623,0.03940434,193.77,193.75,7.44022964]
[1739653520217,0.03940434,193.77,193.76,5.1602]
[1739653520413,7.44022964,193.89,193.75,7.44022964]
[1739653520718,7.44022964,193.91,193.84,7.44022964]
[1739653520921,5.1578,193.85,193.84,7.44022964]
[1739653521321,5.1581,193.84,193.82,7.44022964]
[1739653521621,5.1581,193.84,193.83,0.03779152]
[1739653521919,5.1578,193.85,193.77,11.50091045]
[1739653522126,5.1578,193.85,193.82,0.03448089]
[1739653522422,204.50091045,193.93,193.82,0.03448089]
[1739653523218,5.1583,193.83,193.82,0.03448089]
[1739653523423,5.1583,193.83,193.71,127.34091045]
[1739653523424,11.50091045,193.84,193.71,127.34091045]
[1739653523723,11.50091045,193.81,193.71,115.84]
[1739653524513,195.5496,193.85,193.74,0.03361805]
[1739653524514,0.03681277,193.78,193.74,0.03361805]
[1739653526123,5.1603,193.76,193.74,0.03361805]
[1739653526424,0.03681277,193.78,193.74,0.03361805]
[1739653526917,5.19671277,193.78,193.74,0.03361805]
[1739653527623,5.16,193.77,193.74,0.03361805]
[1739653527824,0.03681277,193.78,193.74,0.03361805]
[1739653528724,5.1603,193.76,193.74,0.03361805]
[1739653529623,0.03681277,193.78,193.74,0.03361805]
[1739653529825,5.19651277,193.78,193.74,0.03361805]
[1739653530724,0.03681277,193.78,193.74,0.03361805]
[1739653530925,5.1603,193.76,193.74,0.03361805]
[1739653531223,0.03681277,193.78,193.74,0.03361805]
[1739653531424,5.1599,193.77,193.74,0.03361805]
[1739653532321,0.03681277,193.78,193.74,5.19411805]
[1739653532525,0.03681277,193.78,193.74,11.5345285]
[1739653533522,2.5496,193.85,193.77,11.50091045]
[1739653534725,2.5496,193.85,193.8,5.159]
[1739653535526,7.7075,193.85,193.8,5.159]
[1739653536529,85.10810122,193.9,193.84,11.50091045]
[1739653536720,85.10810122,193.96,193.84,11.50091045]
[1739653536922,5.156,193.92,193.85,0.03859154]
[1739653537122,96.60901167,193.96,193.85,0.03859154]
[1739653538526,11.50091045,193.93,193.85,0.03859154]
[1739653541226,11.50091045,193.96,193.88,5.157]
[1739653541621,11.50091045,193.96,193.9,0.03735551]
[1739653542128,200.7569,193.97,193.9,5.19375551]
[1739653542524,200.7569,193.97,193.9,0.03735551]
[1739653542724,5.155,193.96,193.9,0.03735551]
[1739653543122,5.155,193.96,193.91,5.1562]
[1739653543429,205.9116,193.97,193.9,0.03735551]
[1739653543831,200.7569,193.97,193.9,0.03735551]
[1739653544031,5.155,193.96,193.91,5.1562]
[1739653544528,5.155,193.96,193.9,5.19375551]
[1739653544725,5.1552,193.95,193.9,5.19375551]
[1739653544928,200.7569,193.97,193.9,0.03735551]
[1739653545430,7.7569,193.97,193.9,0.03735551]
[1739653546323,11.50091045,193.96,193.9,0.03735551]
[1739653548733,11.50091045,193.93,193.79,11.50091045]
[1739653549033,11.50091045,193.9,193.76,11.50091045]
[1739653549228,5.1579,193.85,193.8,5.1591]
[1739653550032,0.03620458,193.84,193.81,0.03454074]
[1739653550933,5.19440458,193.84,193.81,0.03454074]
[1739653551724,0.03620458,193.84,193.81,0.03454074]
[1739653552534,0.03620458,193.84,193.82,5.1585]
[1739653554231,0.03620458,193.84,193.83,5.1583]
[1739653556736,0.03620458,193.84,193.82,11.50091045]
[1739653557240,0.03620458,193.84,193.81,0.03454074]
[1739653558645,5.19430458,193.84,193.81,0.03454074]
[1739653558838,0.03620458,193.84,193.81,0.03454074]
[1739653559440,5.1583,193.83,193.81,0.03454074]
[1739653561237,0.03620458,193.84,193.81,0.03454074]
[1739653565743,0.03620458,193.84,193.81,5.19334074]
[1739653567545,0.03620458,193.84,193.82,5.1584]
[1739653568343,0.03620458,193.84,193.81,5.19334074]
[1739653569848,0.03620458,193.84,193.81,0.03454074]
[1739653570048,5.19430458,193.84,193.81,0.03454074]
[1739653570348,0.03620458,193.84,193.81,0.03454074]
[1739653572848,5.19450458,193.84,193.81,0.03454074]
[1739653573048,0.03620458,193.84,193.81,0.03454074]
[1739653573348,5.1586,193.83,193.81,0.03454074]
[1739653574850,5.1586,193.82,193.81,0.03454074]
[1739653576956,5.1584,193.83,193.81,0.03454074]
[1739653577149,0.03620458,193.84,193.81,0.03454074]
[1739653578055,5.19430458,193.84,193.81,0.03454074]
[1739653578854,0.03620458,193.84,193.81,5.19334074]
[1739653584759,5.19430458,193.84,193.81,5.19334074]
[1739653586259,5.19430458,193.84,193.81,0.03454074]
[1739653587060,5.1584,193.83,193.81,0.03454074]
[1739653587357,0.03620458,193.84,193.81,0.03454074]
[1739653588262,5.19430458,193.84,193.81,0.03454074]
[1739653588866,0.03620458,193.84,193.81,0.03454074]
[1739653589051,5.1584,193.83,193.81,0.03454074]
[1739653589953,5.19430458,193.84,193.81,0.03454074]
[1739653590663,0.03620458,193.84,193.81,0.03454074]
[1739653591453,0.03620458,193.84,193.81,5.19334074]
[1739653591762,5.19440458,193.84,193.81,0.03454074]
[1739653592957,0.03620458,193.84,193.81,0.03454074]
[1739653595962,7.36073407,193.82,193.81,0.03454074]
[1739653596262,7.36073407,193.82,193.73,7.36073407]
[1739653596458,7.36073407,193.8,193.75,5.1603]
[1739653597364,0.03488062,193.79,193.76,5.19485945]
[1739653598366,0.03488062,193.79,193.77,5.1599]
[1739653601267,0.03488062,193.79,193.76,0.03465945]
[1739653601465,0.03488062,193.79,193.78,5.1597]
[1739653601869,15.32903726,193.88,193.77,7.36073407]
[1739653602169,10.3857,193.88,193.83,7.36073407]
[1739653602466,5.2285,193.88,193.83,7.36073407]
[1739653602669,278.10810122,193.89,193.85,7.36073407]
[1739653602964,278.14658946,193.89,193.85,7.39841019]
[1739653603168,278.14658946,193.89,193.86,5.1573]
[1739653603968,193.03848824,193.89,193.86,5.1573]
[1739653605172,193.03848824,193.89,193.87,12.51793407]
[1739653605671,0.03848824,193.89,193.87,12.51793407]
[1739653606570,0.03848824,193.89,193.85,0.03767612]
[1739653606571,5.1574,193.87,193.85,0.03767612]
[1739653606770,7.36073407,193.88,193.85,0.03767612]
[1739653606975,12.51823407,193.86,193.85,0.03767612]
[1739653609670,5.1575,193.86,193.85,0.03767612]
[1739653611671,7.36073407,193.88,193.85,0.03767612]
[1739653611973,0.03848824,193.89,193.85,0.03767612]
[1739653612576,5.1571,193.88,193.85,0.03767612]
[1739653612776,7.36073407,193.86,193.85,0.03767612]
[1739653613877,7.36073407,193.86,193.76,7.36073407]
[1739653614079,7.36073407,193.8,193.74,7.36073407]
[1739653614472,12.52063407,193.78,193.72,12.52193407]
[1739653614775,7.36073407,193.78,193.72,5.1612]
[1739653614976,0.03669688,193.77,193.73,0.03464686]
[1739653616176,0.03669688,193.77,193.73,5.19544686]
[1739653618979,0.03669688,193.77,193.73,0.03464686]
[1739653619375,5.1603,193.76,193.73,0.03464686]
[1739653620078,0.03669688,193.77,193.73,0.03464686]
[1739653620280,11.51107912,193.75,193.73,0.03464686]
[1739653620680,5.1607,193.74,193.73,0.03464686]
[1739653621279,2.6269,193.76,193.73,0.03464686]
[1739653621579,2.76549688,193.77,193.73,0.03464686]
[1739653621980,5.1607,193.74,193.73,0.03464686]
[1739653626881,5.1621,193.69,193.61,8.0479]
[1739653627882,0.03375198,193.67,193.64,5.1632]
[1739653628686,0.03375198,193.67,193.63,0.03251716]
[1739653629081,5.19655198,193.67,193.63,0.03251716]
[1739653629286,0.03375198,193.67,193.63,0.03251716]
[1739653629782,5.1632,193.65,193.63,0.03251716]
[1739653629985,0.03375198,193.67,193.63,0.03251716]
[1739653631888,11.51107912,193.66,193.63,0.03251716]
[1739653632994,0.03375198,193.67,193.63,0.03251716]
[1739653633591,0.03375198,193.67,193.65,5.1629]
[1739653633996,0.03375198,193.67,193.64,5.1634]
[1739653636295,0.03375198,193.67,193.65,5.1629]
[1739653636997,0.03375198,193.67,193.63,0.03251716]
[1739653637293,0.03375198,193.67,193.63,5.19611716]
[1739653637793,11.51107912,193.66,193.63,0.03251716]
[1739653638494,5.1634,193.64,193.63,0.03251716]
[1739653639195,11.51107912,193.66,193.63,0.03251716]
[1739653639898,5.1632,193.65,193.63,0.03251716]
[1739653640196,11.51107912,193.66,193.63,0.03251716]
[1739653641096,16.67397912,193.66,193.63,0.03251716]
[1739653642200,5.1632,193.65,193.63,0.03251716]
[1739653642499,0.03375198,193.67,193.63,0.03251716]
[1739653642895,0.03375198,193.67,193.65,5.1631]
[1739653643498,0.03375198,193.67,193.63,0.03251716]
[1739653643694,0.03375198,193.67,193.64,5.1634]
[1739653644096,0.03375198,193.67,193.63,0.03251716]
[1739653644295,0.03375198,193.67,193.65,5.1631]
[1739653645098,0.03375198,193.67,193.63,0.03251716]
[1739653645305,0.03375198,193.67,193.66,5.1629]
[1739653650104,5.1603,193.76,193.71,5.1613]
[1739653650302,5.1603,193.76,193.66,11.51107912]
[1739653650807,5.1603,193.76,193.71,5.1615]
[1739653651104,5.1603,193.76,193.66,11.51107912]
[1739653651307,0.036599,193.75,193.72,0.03910766]
[1739653651907,0.036599,193.75,193.73,5.161]
[1739653652105,0.036599,193.75,193.72,0.03910766]
[1739653653102,11.54767812,193.75,193.72,0.03910766]
[1739653654305,5.1607,193.74,193.72,0.03910766]
[1739653656002,11.54767812,193.75,193.72,0.03910766]
[1739653656203,5.161,193.73,193.72,0.03910766]
[1739653657510,16.70837812,193.75,193.72,0.03910766]
[1739653657711,0.036599,193.75,193.72,0.03910766]
[1739653661816,5.161,193.74,193.72,0.03910766]
[1739653662115,0.036599,193.75,193.72,0.03910766]
[1739653662612,5.197299,193.75,193.72,0.03910766]
[1739653663520,0.036599,193.75,193.72,0.03910766]
[1739653664218,5.197099,193.75,193.72,0.03910766]
[1739653664917,0.036599,193.75,193.72,0.03910766]
[1739653665118,0.036599,193.75,193.72,5.20040766]
[1739653666621,0.036599,193.75,193.72,0.03910766]
[1739653669115,0.036599,193.75,193.72,5.20030766]
[1739653671420,0.036599,193.75,193.73,5.161]
[1739653672518,0.036599,193.75,193.72,0.03910766]
[1739653672519,0.036599,193.75,193.74,5.1607]
[1739653673023,198.1587,193.82,193.74,7.36751713]
[1739653673221,7.36751713,193.81,193.76,7.36751713]
[1739653673418,7.36751713,193.79,193.73,5.3847]
[1739653674025,0.03662124,193.78,193.74,5.19967942]
[1739653675522,5.19632124,193.78,193.74,5.19967942]
[1739653676824,0.03662124,193.78,193.74,5.19967942]
[1739653678317,5.19632124,193.78,193.74,5.19967942]
[1739653679426,0.03662124,193.78,193.74,5.19967942]
[1739653680423,0.03662124,193.78,193.74,7.40649655]
[1739653680628,0.03662124,193.78,193.75,5.1604]
[1739653681225,0.03662124,193.78,193.77,5.1599]
[1739653681928,0.03662124,193.78,193.76,12.52771713]
[1739653682124,0.03662124,193.78,193.74,9.97549655]
[1739653682727,0.03662124,193.78,193.75,5.1602]
[1739653683430,7.36751713,193.76,193.74,0.03897942]
[1739653684833,12.52771713,193.76,193.74,0.03897942]
[1739653687728,7.36751713,193.76,193.74,0.03897942]
[1739653688030,0.03662124,193.78,193.74,0.03897942]
[1739653688231,0.03662124,193.78,193.76,7.36751713]
[1739653688823,0.03662124,193.78,193.77,5.1599]
[1739653690823,0.03662124,193.78,193.76,12.52771713]
[1739653692031,0.03662124,193.78,193.77,5.1599]
[1739653705445,0.03662124,193.78,193.77,10.7017]
[1739653706946,2.124e-05,193.78,193.77,10.7017]
[1739653710241,12.52461713,193.88,193.77,5.5418]
[1739653710451,12.52461713,193.88,193.82,7.36751713]
[1739653710849,5.1568,193.89,193.84,5.1581]
[1739653711150,7.36751713,193.9,193.82,7.36751713]
[1739653711445,7.36751713,193.88,193.85,0.03854612]
[1739653714049,5.1575,193.87,193.85,0.03854612]
[1739653715052,7.36751713,193.88,193.85,0.03854612]
[1739653715348,7.36751713,193.86,193.85,0.03854612]
[1739653716148,12.52501713,193.86,193.85,0.03854612]
[1739653721347,7.36751713,193.86,193.85,0.03854612]
[1739653724357,5.1573,193.87,193.85,0.03854612]
[1739653727760,12.52461713,193.88,193.85,0.03854612]
[1739653728357,5.1571,193.88,193.85,0.03854612]
[1739653729064,12.52461713,193.88,193.85,0.03854612]
[1739653734959,5.1568,193.89,193.85,0.03854612]
[1739653735860,7.36751713,193.9,193.85,0.03854612]
[1739653736160,5.1565,193.9,193.85,5.19634612]
[1739653736863,210.86471713,193.92,193.86,5.1575]
[1739653737157,205.70851713,193.92,193.86,5.1575]
[1739653737757,5.1562,193.91,193.86,5.1575]
[1739653738153,5.1562,193.91,193.87,5.1572]
[1739653739651,200.36751713,193.92,193.86,7.36751713]
[1739653739854,205.52351713,193.92,193.86,7.36751713]
[1739653741056,9.99511713,193.94,193.88,7.36751713]
[1739653741558,9.99511713,193.94,193.9,5.1563]
[1739653742254,15.15061713,193.94,193.9,5.1563]
[1739653743560,12.52261713,193.96,193.91,5.1561]
[1739653744058,7.36751713,193.96,193.91,5.1561]
[1739653744261,5.1553,193.95,193.91,5.1561]
[1739653744450,7.36751713,193.96,193.9,7.36751713]
[1739653744652,7.36751713,193.94,193.89,0.03803355]
[1739653745160,5.156,193.92,193.89,0.03803355]
[1739653746961,7.36751713,193.94,193.89,0.03803355]
[1739653747162,5.1563,193.91,193.89,0.03803355]
[1739653748363,5.156,193.92,193.89,0.03803355]
[1739653749663,7.36751713,193.94,193.89,0.03803355]
[1739653749862,5.1556,193.94,193.89,7.40555068]
[1739653750063,7.36751713,193.96,193.89,7.40555068]
[1739653751665,5.1554,193.94,193.89,7.40555068]
[1739653751966,7.36751713,193.96,193.89,7.40555068]
[1739653752467,5.1559,193.93,193.89,7.40555068]
[1739653754868,7.36751713,193.96,193.89,7.40555068]
[1739653755065,5.156,193.92,193.89,0.03803355]
[1739653755266,5.156,193.92,193.87,12.52471713]
[1739653755574,5.156,193.92,193.89,0.03871235]
[1739653757072,7.36751713,193.94,193.89,0.03871235]
[1739653757270,5.1557,193.93,193.89,0.03871235]
[1739653757967,7.36751713,193.94,193.89,0.03871235]
[1739653758162,7.36751713,193.92,193.89,0.03871235]
[1739653758362,7.36751713,193.9,193.81,7.36751713]
[1739653758566,7.36751713,193.87,193.81,7.36751713]
[1739653758768,12.52501713,193.87,193.84,0.0361816]
[1739653759773,5.1576,193.86,193.84,0.0361816]
[1739653759973,7.36751713,193.85,193.84,0.0361816]
[1739653760171,7.36751713,193.85,193.77,5.1597]
[1739653760368,7.36751713,193.82,193.77,5.1597]
[1739653760566,7.36751713,193.82,193.79,0.03799621]
[1739653761167,7.36751713,193.84,193.79,0.03799621]
[1739653761575,7.36751713,193.84,193.79,5.19729621]
[1739653763080,7.36751713,193.86,193.82,5.1586]
[1739653763378,5.1569,193.89,193.81,7.36751713]
[1739653763379,7.36751713,193.88,193.81,7.36751713]
[1739653763575,7.36751713,193.88,193.82,0.03672468]
[1739653763776,12.52401713,193.9,193.83,12.52561713]
[1739653763972,12.52401713,193.9,193.83,7.36751713]
[1739653764176,12.52401713,193.9,193.85,0.03590138]
[1739653764573,7.36751713,193.88,193.85,0.03590138]
[1739653766185,12.52461713,193.88,193.85,0.03590138]
[1739653766886,7.36751713,193.88,193.85,0.03590138]
[1739653767382,12.52461713,193.88,193.85,0.03590138]
[1739653767682,7.36751713,193.88,193.85,0.03590138]
[1739653768177,7.36751713,193.86,193.85,0.03590138]
[1739653773183,12.52501713,193.86,193.85,0.03590138]
[1739653788094,7.36751713,193.9,193.85,0.03590138]
[1739653789093,5.1569,193.89,193.85,5.19360138]
[1739653790697,7.36751713,193.88,193.85,0.03590138]
[1739653791400,12.52501713,193.86,193.85,0.03590138]
[1739653804519,7.36751713,193.9,193.85,0.03590138]
[1739653805115,5.1568,193.89,193.85,5.19360138]
[1739653805316,7.36751713,193.9,193.85,0.03590138]
[1739653805517,7.36751713,193.86,193.85,0.03590138]
[1739653805923,12.52501713,193.86,193.85,0.03590138]
[1739653810016,7.36751713,193.88,193.85,0.03590138]
[1739653810723,5.1573,193.87,193.85,0.03590138]
[1739653810925,7.36751713,193.88,193.85,0.03590138]
[1739653811833,12.52451713,193.88,193.85,0.03590138]
[1739653813021,7.36751713,193.88,193.85,0.03590138]
[1739653813222,5.1575,193.86,193.85,0.03590138]
[1739653816330,7.36751713,193.88,193.85,0.03590138]
[1739653816526,5.1574,193.87,193.85,0.03590138]
[1739653817029,5.1575,193.87,193.85,0.03590138]
[1739653818637,7.36751713,193.88,193.85,0.03590138]
[1739653818839,12.52461713,193.88,193.85,0.03590138]
[1739653819831,5.1573,193.87,193.85,0.03590138]
[1739653821837,193.0,193.91,193.85,7.40341851]
[1739653822040,10.10613327,193.92,193.85,7.40341851]
[1739653822337,90.26380122,193.93,193.87,7.36751713]
[1739653822934,85.10810122,193.93,193.89,5.1567]
[1739653823336,85.10810122,193.93,193.89,5.19611503]
[1739653823534,85.10810122,193.93,193.9,5.1563]
[1739653824135,5.1552,193.95,193.89,7.40693216]
[1739653824136,90.26330122,193.95,193.89,7.40693216]
[1739653824335,90.26330122,193.95,193.89,12.56363216]
[1739653825443,85.10810122,193.95,193.9,5.1563]